fUSD/lending_fUSD_20240104
["ID","MTS","AMOUNT","RATE_DAILY","PERIOD"]
[310220231,1704402701639,-500.0,0.00035342,2]
[310220232,1704402701649,-382.74695294,0.00035342,2]
[310220233,1704402701659,-738.09,0.00035342,2]
[310220234,1704402701668,-500.0,0.00035342,2]
[310220235,1704402701678,-500.0,0.00035342,2]
[310220236,1704402701687,-500.0,0.00035342,2]
[310220237,1704402701697,-807.57,0.00035342,2]
[310220238,1704402701707,-500.0,0.00035342,2]
[310220239,1704402701717,-500.0,0.00035342,2]
[310220240,1704402701726,-500.0,0.00035342,2]
[310220241,1704402701738,-500.0,0.00035342,2]
[310220242,1704402701748,-527.72,0.00035342,2]
[310220243,1704402701758,-687.6,0.00035342,2]
[310220244,1704402701768,-500.0,0.00035342,2]
[310220245,1704402701778,-500.0,0.00035342,2]
[310220246,1704402701788,-161.9923684,0.00035342,2]
[310220247,1704402701798,-500.0,0.00035342,2]
[310220248,1704402701808,-500.0,0.00035342,2]
[310220249,1704402701817,-500.0,0.00035342,2]
[310220250,1704402701826,-500.0,0.00035342,2]
[310220251,1704402701836,-500.0,0.00035342,2]
[310220252,1704402701845,-500.0,0.00035342,2]
[310220253,1704402701855,-500.0,0.00035342,2]
[310220254,1704402701864,-500.0,0.00035342,2]
[310220255,1704402701873,-500.0,0.00035342,2]
[310220256,1704402701882,-150.05727205,0.00035342,2]
[310220257,1704402701891,-500.0,0.00035342,2]
[310220258,1704402701901,-500.0,0.00035342,2]
[310220259,1704402701910,-602.44,0.00035342,2]
[310220260,1704402701919,-500.0,0.00035342,2]
[310220261,1704402701928,-500.0,0.00035342,2]
[310220262,1704402701938,-660.7,0.00035342,2]
[310220263,1704402701947,-500.0,0.00035342,2]
[310220264,1704402701956,-722.69,0.00035342,2]
[310220265,1704402701965,-598.95,0.00035342,2]
[310220266,1704402701974,-500.0,0.00035342,2]
[310220267,1704402701984,-541.66,0.00035342,2]
[310220268,1704402701993,-500.0,0.00035342,2]
[310220269,1704402702002,-500.0,0.00035342,2]
[310220270,1704402702011,-505.83,0.00035342,2]
[310220271,1704402702020,-500.0,0.00035342,2]
[310220272,1704402702030,-500.0,0.00035342,2]
[310220273,1704402702039,-500.0,0.00035342,2]
[310220274,1704402702049,-500.0,0.00035342,2]
[310220275,1704402702058,-500.0,0.00035342,2]
[310220276,1704402702068,-500.0,0.00035342,2]
[310220277,1704402702077,-500.0,0.00035342,2]
[310220278,1704402702086,-718.72,0.00035342,2]
[310220279,1704402702096,-680.79,0.00035342,2]
[310220280,1704402702105,-500.0,0.00035342,2]
[310220281,1704402702114,-500.0,0.00035342,2]
[310220282,1704402702124,-500.0,0.00035342,2]
[310220283,1704402702134,-1621.27,0.00035342,2]
[310220284,1704402702144,-500.0,0.00035342,2]
[310220285,1704402702154,-500.0,0.00035342,2]
[310220286,1704402702164,-500.0,0.00035342,2]
[310220287,1704402702174,-738.09,0.00035342,2]
[310220288,1704402702183,-519.11,0.00035342,2]
[310220289,1704402702193,-500.0,0.00035342,2]
[310220290,1704402702202,-500.0,0.00035342,2]
[310220291,1704402702212,-754.73,0.00035342,2]
[310220292,1704402702221,-386.78712474,0.00035342,2]
[310220293,1704402702232,-500.0,0.00035342,2]
[310220294,1704402702242,-578.29,0.00035342,2]
[310220295,1704402702252,-500.0,0.00035342,2]
[310220296,1704402702262,-500.0,0.00035342,2]
[310220297,1704402702272,-500.0,0.00035342,2]
[310220298,1704402702282,-500.0,0.00035342,2]
[310220299,1704402702291,-947.06,0.00035342,2]
[310220300,1704402702301,-1076.04,0.00035342,2]
[310220301,1704402702310,-500.0,0.00035342,2]
[310220302,1704402702320,-541.45,0.00035342,2]
[310220303,1704402702330,-500.0,0.00035342,2]
[310220304,1704402702339,-519.94,0.00035342,2]
[310220305,1704402702348,-570.54,0.00035342,2]
[310220306,1704402702358,-596.45,0.00035342,2]
[310220307,1704402702367,-917.54,0.00035342,2]
[310220308,1704402702377,-500.0,0.00035342,2]
[310220309,1704402702387,-500.0,0.00035342,2]
[310220310,1704402702396,-500.0,0.00035342,2]
[310220311,1704402702406,-500.0,0.00035342,2]
[310220312,1704402702416,-639.13,0.00035342,2]
[310220313,1704402702426,-500.0,0.00035342,2]
[310220314,1704402702435,-774.28,0.00035342,2]
[310220315,1704402702445,-500.0,0.00035342,2]
[310220316,1704402702454,-642.46,0.00035342,2]
[310220317,1704402702464,-500.0,0.00035342,2]
[310220318,1704402702474,-665.84,0.00035342,2]
[310220319,1704402702483,-500.0,0.00035342,2]
[310220320,1704402702492,-500.0,0.00035342,2]
[310220321,1704402702502,-500.0,0.00035342,2]
[310220322,1704402702511,-500.0,0.00035342,2]
[310220323,1704402702521,-500.0,0.00035342,2]
[310220324,1704402702531,-500.0,0.00035342,2]
[310220325,1704402702540,-500.0,0.00035342,2]
[310220326,1704402702551,-564.52,0.00035342,2]
[310220327,1704402702561,-520.83,0.00035342,2]
[310220328,1704402702570,-1863.96,0.00035342,2]
[310220329,1704402702581,-500.0,0.00035342,2]
[310220330,1704402702590,-500.0,0.00035342,2]
[310220331,1704402702601,-500.0,0.00035342,2]
[310220332,1704402702611,-533.03,0.00035342,2]
[310220333,1704402702620,-1044.47,0.00035342,2]
[310220334,1704402702630,-531.47,0.00035342,2]
[310220335,1704402702639,-564.43,0.00035342,2]
[310220336,1704402702648,-1039.05,0.00035342,2]
[310220337,1704402702658,-791.55,0.00035342,2]
[310220338,1704402702668,-1245.41,0.00035342,2]
[310220339,1704402702678,-757.45,0.00035342,2]
[310220340,1704402702688,-521.07,0.00035342,2]
[310220341,1704402702699,-162.01,0.00035342,2]
[310220342,1704402702710,-450.12861059,0.00035342,2]
[310220343,1704402702719,-663.54,0.00035342,2]
[310220344,1704402702729,-988.41,0.00035342,2]
[310220345,1704402702739,-1253.45,0.00035342,2]
[310220346,1704402702749,-623.24,0.00035342,2]
[310220347,1704402702760,-1071.01,0.00035342,2]
[310220348,1704402702769,-500.0,0.00035342,2]
[310220349,1704402702778,-1080.17,0.00035342,2]
[310220350,1704402702788,-500.0,0.00035342,2]
[310220351,1704402702797,-500.0,0.00035342,2]
[310220352,1704402702807,-2123.54,0.00035342,2]
[310220353,1704402702817,-1443.74,0.00035342,2]
[310220354,1704402702827,-500.0,0.00035342,2]
[310220355,1704402702836,-500.0,0.00035342,2]
[310220356,1704402702846,-500.0,0.00035342,2]
[310220357,1704402702855,-500.0,0.00035342,2]
[310220358,1704402702864,-1276.68,0.00035342,2]
[310220359,1704402702874,-500.0,0.00035342,2]
[310220360,1704402702882,-500.0,0.00035342,2]
[310220361,1704402702892,-500.0,0.00035342,2]
[310220362,1704402702901,-500.0,0.00035342,2]
[310220363,1704402702911,-500.0,0.00035342,2]
[310220364,1704402702920,-500.0,0.00035342,2]
[310220365,1704402702929,-500.0,0.00035342,2]
[310220366,1704402702938,-2290.92,0.00035342,2]
[310220367,1704402702947,-500.0,0.00035342,2]
[310220368,1704402702956,-5464.43,0.00035342,2]
[310220369,1704402702966,-1286.86,0.00035342,2]
[310220370,1704402702975,-543.96,0.00035342,2]
[310220371,1704402702984,-623.16,0.00035342,2]
[310220372,1704402702993,-500.0,0.00035342,2]
[310220373,1704402703005,-1530.15,0.00035342,2]
[310220374,1704402703014,-2181.99,0.00035342,2]
[310220375,1704402703023,-500.0,0.00035342,2]
[310220376,1704402703031,-3262.68,0.00035342,2]
[310220377,1704402703040,-1391.97,0.00035342,2]
[310220378,1704402703049,-756.79,0.00035342,2]
[310220379,1704402703059,-500.0,0.00035342,2]
[310220380,1704402703069,-618.7,0.00035342,2]
[310220381,1704402703079,-1812.71,0.00035342,2]
[310220382,1704402703089,-500.0,0.00035342,2]
[310220383,1704402703099,-500.0,0.00035342,2]
[310220384,1704402703108,-500.0,0.00035342,2]
[310220385,1704402703120,-500.0,0.00035342,2]
[310220386,1704402703129,-500.0,0.00035342,2]
[310220387,1704402703138,-927.7,0.00035342,2]
[310220388,1704402703150,-709.7,0.00035342,2]
[310220389,1704402703160,-1742.56,0.00035342,2]
[310220390,1704402703171,-7042.65,0.00035342,2]
[310220391,1704402703180,-500.0,0.00035342,2]
[310220392,1704402703189,-500.0,0.00035342,2]
[310220393,1704402703199,-500.0,0.00035342,2]
[310220394,1704402703208,-500.0,0.00035342,2]
[310220395,1704402703217,-500.0,0.00035342,2]
[310220396,1704402703226,-500.0,0.00035342,2]
[310220397,1704402703237,-910.81,0.00035342,2]
[310220398,1704402703246,-500.0,0.00035342,2]
[310220399,1704402703255,-500.0,0.00035342,2]
[310220400,1704402703264,-500.0,0.00035342,2]
[310220401,1704402703273,-1009.55,0.00035342,2]
[310220402,1704402703282,-500.0,0.00035342,2]
[310220403,1704402703291,-500.0,0.00035342,2]
[310220404,1704402703300,-1739.77,0.00035342,2]
[310220405,1704402703310,-500.0,0.00035342,2]
[310220406,1704402703320,-500.0,0.00035342,2]
[310220407,1704402703330,-500.0,0.00035342,2]
[310220408,1704402703340,-500.0,0.00035342,2]
[310220409,1704402703351,-500.0,0.00035342,2]
[310220410,1704402703361,-500.0,0.00035342,2]
[310220411,1704402703370,-500.0,0.00035342,2]
[310220412,1704402703379,-1282.1,0.00035342,2]
[310220413,1704402703389,-6408.05,0.00035342,2]
[310220414,1704402703398,-500.0,0.00035342,2]
[310220415,1704402703408,-2129.19,0.00035342,2]
[310220416,1704402703418,-1154.96,0.00035342,2]
[310220417,1704402703430,-500.0,0.00035342,2]
[310220418,1704402703440,-1729.84,0.00035342,2]
[310220419,1704402703450,-500.0,0.00035342,2]
[310220420,1704402703459,-500.0,0.00035342,2]
[310220421,1704402703470,-500.0,0.00035342,2]
[310220422,1704402703480,-500.0,0.00035342,2]
[310220423,1704402703493,-913.73,0.00035342,2]
[310220424,1704402703504,-500.0,0.00035342,2]
[310220425,1704402703515,-500.0,0.00035342,2]
[310220426,1704402703524,-500.0,0.00035342,2]
[310220427,1704402703586,-4842.28,0.00035342,2]
[310220428,1704402703596,-2264.53,0.00035342,2]
[310220429,1704402703606,-500.0,0.00035342,2]
[310220430,1704402703615,-500.0,0.00035342,2]
[310220431,1704402703625,-500.0,0.00035342,2]
[310220432,1704402703635,-500.0,0.00035342,2]
[310220433,1704402703645,-2281.55,0.00035342,2]
[310220434,1704402703655,-500.0,0.00035342,2]
[310220435,1704402703665,-500.0,0.00035342,2]
[310220436,1704402703675,-500.0,0.00035342,2]
[310220437,1704402703684,-500.0,0.00035342,2]
[310220438,1704402703694,-500.0,0.00035342,2]
[310220439,1704402703703,-500.0,0.00035342,2]
[310220440,1704402703712,-500.0,0.00035342,2]
[310220441,1704402703722,-500.0,0.00035342,2]
[310220442,1704402703731,-539.42,0.00035342,2]
[310220443,1704402703746,-983.89,0.00035342,2]
[310220444,1704402703756,-500.0,0.00035342,2]
[310220445,1704402703765,-500.0,0.00035342,2]
[310220446,1704402703775,-500.0,0.00035342,2]
[310220447,1704402703784,-500.0,0.00035342,2]
[310220448,1704402703794,-500.0,0.00035342,2]
[310220449,1704402703803,-1154.67,0.00035342,2]
[310220450,1704402703812,-500.0,0.00035342,2]
[310220451,1704402703822,-599.93,0.00035342,2]
[310220452,1704402703832,-616.54,0.00035342,2]
[310220453,1704402703842,-500.0,0.00035342,2]
[310220454,1704402703851,-1525.72,0.00035342,2]
[310220455,1704402703860,-613.63,0.00035342,2]
[310220456,1704402703870,-637.93,0.00035342,2]
[310220457,1704402703880,-500.0,0.00035342,2]
[310220458,1704402703890,-500.0,0.00035342,2]
[310220459,1704402703900,-500.0,0.00035342,2]
[310220460,1704402703910,-878.05,0.00035342,2]
[310220461,1704402703919,-381.27,0.00035342,2]
[310220462,1704402703929,-500.0,0.00035342,2]
[310220463,1704402703939,-902.92,0.00035342,2]
[310220464,1704402703948,-500.0,0.00035342,2]
[310220465,1704402703958,-500.0,0.00035342,2]
[310220466,1704402703967,-500.0,0.00035342,2]
[310220467,1704402703976,-500.0,0.00035342,2]
[310220468,1704402703985,-589.16,0.00035342,2]
[310220469,1704402703998,-164.36034146,0.00035342,2]
[310220470,1704402704008,-500.0,0.00035342,2]
[310220471,1704402704018,-500.0,0.00035342,2]
[310220472,1704402704027,-500.0,0.00035342,2]
[310220473,1704402704037,-500.0,0.00035342,2]
[310220474,1704402704047,-500.0,0.00035342,2]
[310220475,1704402704057,-984.56,0.00035342,2]
[310220476,1704402704067,-500.0,0.00035342,2]
[310220477,1704402704077,-563.07,0.00035342,2]
[310220478,1704402704087,-500.0,0.00035342,2]
[310220479,1704402704097,-2695.69,0.00035342,2]
[310220480,1704402704107,-786.61,0.00035342,2]
[310220481,1704402704117,-1449.26,0.00035342,2]
[310220482,1704402704127,-6403.69,0.00035342,2]
[310220483,1704402704137,-565.56,0.00035342,2]
[310220484,1704402704147,-500.0,0.00035342,2]
[310220485,1704402704157,-500.0,0.00035342,2]
[310220486,1704402704166,-573.87,0.00035342,2]
[310220487,1704402704176,-500.0,0.00035342,2]
[310220488,1704402704185,-500.0,0.00035342,2]
[310220489,1704402704194,-750.62,0.00035342,2]
[310220490,1704402704203,-1503.12,0.00035342,2]
[310220491,1704402704213,-500.0,0.00035342,2]
[310220492,1704402704222,-500.0,0.00035342,2]
[310220493,1704402704231,-515.26,0.00035342,2]
[310220494,1704402704249,-500.0,0.00035342,2]
[310220495,1704402704258,-500.0,0.00035342,2]
[310220496,1704402704268,-500.0,0.00035342,2]
[310220497,1704402704278,-1352.57,0.00035342,2]
[310220498,1704402704287,-500.0,0.00035342,2]
[310220499,1704402704296,-4498.58,0.00035342,2]
[310220500,1704402704305,-1460.37,0.00035342,2]
[310220501,1704402704314,-647.5,0.00035342,2]
[310220502,1704402704324,-500.0,0.00035342,2]
[310220503,1704402704333,-500.0,0.00035342,2]
[310220504,1704402704343,-895.41,0.00035342,2]
[310220505,1704402704353,-500.0,0.00035342,2]
[310220506,1704402704362,-500.0,0.00035342,2]
[310220507,1704402704371,-500.0,0.00035342,2]
[310220508,1704402704381,-500.0,0.00035342,2]
[310220509,1704402704391,-500.0,0.00035342,2]
[310220510,1704402704401,-500.0,0.00035342,2]
[310220511,1704402704410,-500.0,0.00035342,2]
[310220512,1704402704420,-761.85,0.00035342,2]
[310220513,1704402704430,-500.0,0.00035342,2]
[310220514,1704402704439,-500.0,0.00035342,2]
[310220515,1704402704449,-264.25907771,0.00035342,2]
[310220516,1704402704458,-2111.24,0.00035342,2]
[310220517,1704402704468,-500.0,0.00035342,2]
[310220518,1704402704477,-1731.46,0.00035342,2]
[310220519,1704402704490,-500.0,0.00035342,2]
[310220520,1704402704499,-928.81,0.00035342,2]
[310220521,1704402704508,-1937.57,0.00035342,2]
[310220522,1704402704518,-1123.24,0.00035342,2]
[310220523,1704402704528,-550.84,0.00035342,2]
[310220524,1704402704537,-500.0,0.00035342,2]
[310220525,1704402704546,-500.0,0.00035342,2]
[310220526,1704402704556,-500.0,0.00035342,2]
[310220527,1704402704565,-504.38,0.00035342,2]
[310220528,1704402704575,-1072.15,0.00035342,2]
[310220529,1704402704585,-729.82,0.00035342,2]
[310220530,1704402704594,-500.0,0.00035342,2]
[310220531,1704402704604,-500.0,0.00035342,2]
[310220532,1704402704614,-2257.92,0.00035342,2]
[310220533,1704402704623,-500.0,0.00035342,2]
[310220534,1704402704634,-1167.4,0.00035342,2]
[310220535,1704402704643,-831.43,0.00035342,2]
[310220536,1704402704652,-1414.25,0.00035342,2]
[310220537,1704402704662,-1040.38,0.00035342,2]
[310220538,1704402704673,-500.0,0.00035342,2]
[310220539,1704402704682,-500.0,0.00035342,2]
[310220540,1704402704691,-828.1,0.00035342,2]
[310220541,1704402704702,-500.0,0.00035342,2]
[310220542,1704402704711,-500.0,0.00035342,2]
[310220543,1704402704720,-500.0,0.00035342,2]
[310220544,1704402704731,-500.0,0.00035342,2]
[310220545,1704402704742,-500.0,0.00035342,2]
[310220546,1704402704752,-500.0,0.00035342,2]
[310220547,1704402704763,-678.15,0.00035342,2]
[310220548,1704402704774,-500.0,0.00035342,2]
[310220549,1704402704784,-500.0,0.00035342,2]
[310220550,1704402704794,-500.0,0.00035342,2]
[310220551,1704402704805,-500.0,0.00035342,2]
[310220552,1704402704815,-500.0,0.00035342,2]
[310220553,1704402704825,-500.0,0.00035342,2]
[310220554,1704402704834,-1448.36,0.00035342,2]
[310220555,1704402704844,-6561.10642165,0.00035432,2]
[310220556,1704402704853,-163.66,0.00035457,2]
[310220557,1704402704864,-152.79793013,0.00035472,14]
[310220558,1704402704874,-224.3157471,0.00035473,14]
[310220559,1704402704883,-191.28567206,0.00035476,14]
[310220560,1704402704893,-661.53,0.00035498,2]
[310220561,1704402704903,-191.28567206,0.00035584,14]
[310220562,1704402704913,-167.0,0.00035584,2]
[310220563,1704402704922,-167.0,0.00035584,2]
[310220564,1704402704931,-1000.0,0.000356,2]
[310220565,1704402704940,-191.28567206,0.00035611,14]
[310220566,1704402704950,-150.0,0.00035615,2]
[310220567,1704402704960,-500.0,0.00035616,2]
[310220568,1704402704970,-500.0,0.00035616,2]
[310220569,1704402704980,-500.0,0.00035616,2]
[310220570,1704402704991,-500.0,0.00035616,2]
[310220571,1704402705000,-554.75,0.00035616,2]
[310220573,1704402705012,-500.0,0.00035616,2]
[310220574,1704402705021,-500.0,0.00035616,2]
[310220575,1704402705030,-500.0,0.00035616,2]
[310220576,1704402705038,-500.0,0.00035616,2]
[310220577,1704402705048,-500.0,0.00035616,2]
[310220578,1704402705057,-500.0,0.00035616,2]
[310220579,1704402705066,-500.0,0.00035616,2]
[310220580,1704402705074,-500.0,0.00035616,2]
[310220581,1704402705083,-500.0,0.00035616,2]
[310220582,1704402705092,-500.0,0.00035616,2]
[310220583,1704402705101,-500.0,0.00035616,2]
[310220584,1704402705110,-500.0,0.00035616,2]
[310220585,1704402705119,-500.0,0.00035616,2]
[310220586,1704402705128,-500.0,0.00035616,2]
[310220587,1704402705137,-500.0,0.00035616,2]
[310220588,1704402705146,-500.0,0.00035616,2]
[310220589,1704402705155,-500.0,0.00035616,2]
[310220590,1704402705164,-500.0,0.00035616,2]
[310220591,1704402705174,-500.0,0.00035616,2]
[310220592,1704402705186,-500.0,0.00035616,2]
[310220593,1704402705195,-500.0,0.00035616,2]
[310220594,1704402705205,-1160.79,0.00035616,2]
[310220595,1704402705214,-500.0,0.00035616,2]
[310220596,1704402705225,-500.0,0.00035616,2]
[310220597,1704402705235,-500.0,0.00035616,2]
[310220598,1704402705246,-738.09,0.00035616,2]
[310220599,1704402705256,-500.0,0.00035616,2]
[310220600,1704402705266,-500.0,0.00035616,2]
[310220601,1704402705276,-500.0,0.00035616,2]
[310220602,1704402705286,-807.57,0.00035616,2]
[310220603,1704402705296,-500.0,0.00035616,2]
[310220604,1704402705306,-500.0,0.00035616,2]
[310220605,1704402705316,-500.0,0.00035616,2]
[310220606,1704402705326,-500.0,0.00035616,2]
[310220607,1704402705335,-527.72,0.00035616,2]
[310220608,1704402705345,-687.6,0.00035616,2]
[310220609,1704402705354,-500.0,0.00035616,2]
[310220610,1704402705365,-500.0,0.00035616,2]
[310220611,1704402705374,-500.0,0.00035616,2]
[310220612,1704402705384,-500.0,0.00035616,2]
[310220613,1704402705393,-500.0,0.00035616,2]
[310220614,1704402705404,-500.0,0.00035616,2]
[310220615,1704402705413,-500.0,0.00035616,2]
[310220616,1704402705423,-316.46499641,0.00035616,2]
[310220617,1704402705435,-500.0,0.00035616,2]
[310220618,1704402705444,-500.0,0.00035616,2]
[310220619,1704402705454,-500.0,0.00035616,2]
[310220620,1704402705465,-500.0,0.00035616,2]
[310220621,1704402705475,-500.0,0.00035616,2]
[310220622,1704402705484,-602.44,0.00035616,2]
[310220623,1704402705495,-500.0,0.00035616,2]
[310220624,1704402705504,-500.0,0.00035616,2]
[310220625,1704402705514,-660.7,0.00035616,2]
[310220626,1704402705524,-500.0,0.00035616,2]
[310220627,1704402705533,-722.69,0.00035616,2]
[310220628,1704402705542,-598.95,0.00035616,2]
[310220629,1704402705552,-500.0,0.00035616,2]
[310220630,1704402705561,-541.66,0.00035616,2]
[310220631,1704402705570,-500.0,0.00035616,2]
[310220632,1704402705579,-500.0,0.00035616,2]
[310220633,1704402705589,-505.83,0.00035616,2]
[310220634,1704402705598,-500.0,0.00035616,2]
[310220635,1704402705608,-500.0,0.00035616,2]
[310220636,1704402705623,-500.0,0.00035616,2]
[310220637,1704402705633,-500.0,0.00035616,2]
[310220638,1704402705642,-500.0,0.00035616,2]
[310220639,1704402705651,-500.0,0.00035616,2]
[310220640,1704402705662,-500.0,0.00035616,2]
[310220641,1704402705673,-718.72,0.00035616,2]
[310220642,1704402705682,-680.79,0.00035616,2]
[310220643,1704402705691,-500.0,0.00035616,2]
[310220644,1704402705700,-500.0,0.00035616,2]
[310220645,1704402705709,-500.0,0.00035616,2]
[310220646,1704402705718,-1621.27,0.00035616,2]
[310220647,1704402705727,-500.0,0.00035616,2]
[310220648,1704402705737,-500.0,0.00035616,2]
[310220649,1704402705746,-500.0,0.00035616,2]
[310220650,1704402705757,-738.09,0.00035616,2]
[310220651,1704402705768,-519.11,0.00035616,2]
[310220652,1704402705778,-500.0,0.00035616,2]
[310220653,1704402705788,-150.33311463,0.00035616,2]
[310220654,1704402705798,-754.73,0.00035616,2]
[310220655,1704402705807,-171.77008375,0.00035616,2]
[310220656,1704402705817,-578.29,0.00035616,2]
[310220657,1704402705826,-500.0,0.00035616,2]
[310220658,1704402705836,-500.0,0.00035616,2]
[310220659,1704402705846,-500.0,0.00035616,2]
[310220660,1704402705856,-500.0,0.00035616,2]
[310220661,1704402705866,-947.06,0.00035616,2]
[310220662,1704402705877,-1076.04,0.00035616,2]
[310220663,1704402705887,-500.0,0.00035616,2]
[310220664,1704402705897,-541.45,0.00035616,2]
[310220665,1704402705906,-519.94,0.00035616,2]
[310220666,1704402705917,-500.0,0.00035616,2]
[310220667,1704402705927,-570.54,0.00035616,2]
[310220668,1704402705937,-596.45,0.00035616,2]
[310220669,1704402705947,-917.54,0.00035616,2]
[310220670,1704402705957,-500.0,0.00035616,2]
[310220671,1704402705967,-500.0,0.00035616,2]
[310220672,1704402705978,-500.0,0.00035616,2]
[310220673,1704402705990,-545.43243032,0.00035616,2]
[310220674,1704402706001,-639.13,0.00035616,2]
[310220675,1704402706012,-500.0,0.00035616,2]
[310220676,1704402706021,-774.28,0.00035616,2]
[310220677,1704402706030,-500.0,0.00035616,2]
[310220678,1704402706040,-642.46,0.00035616,2]
[310220679,1704402706049,-500.0,0.00035616,2]
[310220680,1704402706059,-665.84,0.00035616,2]
[310220681,1704402706068,-500.0,0.00035616,2]
[310220682,1704402706079,-500.0,0.00035616,2]
[310220683,1704402706090,-568.97113185,0.00035616,2]
[310220684,1704402706099,-500.0,0.00035616,2]
[310220685,1704402706109,-500.0,0.00035616,2]
[310220686,1704402706120,-500.0,0.00035616,2]
[310220687,1704402706130,-500.0,0.00035616,2]
[310220688,1704402706141,-564.52,0.00035616,2]
[310220689,1704402706151,-520.83,0.00035616,2]
[310220690,1704402706162,-1863.96,0.00035616,2]
[310220691,1704402706172,-500.0,0.00035616,2]
[310220692,1704402706182,-500.0,0.00035616,2]
[310220693,1704402706192,-538.58,0.00035616,2]
[310220694,1704402706202,-533.03,0.00035616,2]
[310220695,1704402706213,-1044.47,0.00035616,2]
[310220696,1704402706223,-531.47,0.00035616,2]
[310220697,1704402706234,-564.43,0.00035616,2]
[310220698,1704402706246,-1039.05,0.00035616,2]
[310220699,1704402706255,-791.55,0.00035616,2]
[310220700,1704402706265,-1245.41,0.00035616,2]
[310220701,1704402706274,-757.45,0.00035616,2]
[310220702,1704402706284,-521.07,0.00035616,2]
[310220703,1704402706294,-162.01,0.00035616,2]
[310220704,1704402706306,-663.54,0.00035616,2]
[310220705,1704402706316,-988.41,0.00035616,2]
[310220706,1704402706327,-1253.45,0.00035616,2]
[310220707,1704402706336,-623.24,0.00035616,2]
[310220708,1704402706346,-1071.01,0.00035616,2]
[310220709,1704402706356,-500.0,0.00035616,2]
[310220710,1704402706366,-1080.17,0.00035616,2]
[310220711,1704402706376,-500.0,0.00035616,2]
[310220712,1704402706386,-500.0,0.00035616,2]
[310220713,1704402706396,-2123.54,0.00035616,2]
[310220714,1704402706407,-1443.74,0.00035616,2]
[310220715,1704402706416,-500.0,0.00035616,2]
[310220716,1704402706426,-500.0,0.00035616,2]
[310220717,1704402706436,-500.0,0.00035616,2]
[310220718,1704402706446,-500.0,0.00035616,2]
[310220719,1704402706456,-1276.68,0.00035616,2]
[310220720,1704402706466,-500.0,0.00035616,2]
[310220721,1704402706476,-500.0,0.00035616,2]
[310220722,1704402706489,-500.0,0.00035616,2]
[310220723,1704402706498,-500.0,0.00035616,2]
[310220724,1704402706509,-500.0,0.00035616,2]
[310220725,1704402706521,-500.0,0.00035616,2]
[310220726,1704402706531,-500.0,0.00035616,2]
[310220727,1704402706541,-2290.92,0.00035616,2]
[310220728,1704402706550,-500.0,0.00035616,2]
[310220729,1704402706561,-5464.43,0.00035616,2]
[310220730,1704402706571,-1286.86,0.00035616,2]
[310220731,1704402706581,-543.96,0.00035616,2]